{"text_format":"1","workbook":"xlsx","n_sheets":2,"sheets":["Rosa a 15 senza membro des.","Commissione"],"not_rendered":{"charts":0,"images":1,"macros":1,"external_links":0,"defined_names":1,"comments":0,"pivot_tables":0},"unopened":[],"bounds":{"document_bytes":16777216,"sheet_cells":100000,"rows_first":2000,"rows_last":500,"rows_between":2000,"halvings":0,"cell_chars":16384,"cell_head_chars":4096},"cells_cut":0,"cells_raw":0,"read":"whole","date_system":"1900"}

{"sheet":"Rosa a 15 senza membro des.","index":0,"n_rows":35,"n_cols":7,"rows_kept":35,"cut":false,"hidden":false,"merged":[[14,4,14,6],[0,0,0,2],[1,0,1,2],[3,0,3,1]]}
["Inserire intestazione verbale"]
["Prova di titolo di verbale di selezione senza membro interno per un totale di tre o cinque commissari come richiesto dalla normativa vigente"]
[]
["1. Indicare N° commissari richiesti (3 oppure 5)→",null,3,null,null,3]
["2. Inserire nome (Cognome Nome) e qualifica (PA o PO) del membro designato",null,null,null,null,5]
[]
["Qualifica","Nome membro designato","Ruolo"]
["PO","nicolina","Membro designato"]
[]
["2. Inserire nome (Cognome Nome) e qualifica (PA o PO) dei commissari disponibili"]
["3. Premere F9 per sorteggiare la commissione"]
["4. Premere il bottone blu  STAMPA COMMISSIONE per generare PDF"]
[]
[]
["Num","Nome commissario disponibile","Qualifica",null,"DA NASCONDERE"]
[1,"aa","PO",null,{"$f":"RAND()","v":0.82310486899187263},{"$f":"INDEX(B$16:INDIRECT($B$35),RANK($E16,$E$16:INDIRECT($C$35)))","v":"bb"},{"$f":"VLOOKUP(F16,Tabella24[],2,FALSE)","v":"PO"}]
[2,"bb","PO",null,{"$f":"RAND()","v":0.84534109741530061},{"$f":"INDEX(B$16:INDIRECT($B$35),RANK($E17,$E$16:INDIRECT($C$35)))","v":"aa"},{"$f":"VLOOKUP(F17,Tabella24[],2,FALSE)","v":"PO"}]
[3,"cc","PO",null,0.80351873521832695,{"$f":"INDEX(B$16:INDIRECT($B$35),RANK($E18,$E$16:INDIRECT($C$35)))","v":"cc"},{"$f":"VLOOKUP(F18,Tabella24[],2,FALSE)","v":"PO"}]
[4,"dd","PA",null,0.62791308434112048,{"$f":"INDEX(B$16:INDIRECT($B$35),RANK($E19,$E$16:INDIRECT($C$35)))","v":"ee"},{"$f":"VLOOKUP(F19,Tabella24[],2,FALSE)","v":"PO"}]
[5,"ee","PO",null,0.19841920911455668,{"$f":"INDEX(B$16:INDIRECT($B$35),RANK($E20,$E$16:INDIRECT($C$35)))","v":"hh"},{"$f":"VLOOKUP(F20,Tabella24[],2,FALSE)","v":"PO"}]
[6,"ff","PO",null,0.6463189914662606,{"$f":"INDEX(B$16:INDIRECT($B$35),RANK($E21,$E$16:INDIRECT($C$35)))","v":"dd"},{"$f":"VLOOKUP(F21,Tabella24[],2,FALSE)","v":"PA"}]
[7,"gg","PO",null,0.11129565054306334,{"$f":"INDEX(B$16:INDIRECT($B$35),RANK($E22,$E$16:INDIRECT($C$35)))","v":"ll"},{"$f":"VLOOKUP(F22,Tabella24[],2,FALSE)","v":"PA"}]
[8,"hh","PO",null,0.16038599687685551,{"$f":"INDEX(B$16:INDIRECT($B$35),RANK($E23,$E$16:INDIRECT($C$35)))","v":"ii"},{"$f":"VLOOKUP(F23,Tabella24[],2,FALSE)","v":"PA"}]
[9,"ii","PA",null,0.30023591706089858,{"$f":"INDEX(B$16:INDIRECT($B$35),RANK($E24,$E$16:INDIRECT($C$35)))","v":"gg"},{"$f":"VLOOKUP(F24,Tabella24[],2,FALSE)","v":"PO"}]
[10,"ll","PA",null,0.52216234153532093,{"$f":"INDEX(B$16:INDIRECT($B$35),RANK($E25,$E$16:INDIRECT($C$35)))","v":"ff"},{"$f":"VLOOKUP(F25,Tabella24[],2,FALSE)","v":"PO"}]
[11,null,null,null,8.2543338293825874E-2,{"$f":"INDEX(B$16:INDIRECT($B$35),RANK($E26,$E$16:INDIRECT($C$35)))","v":{"$error":"#N/A"}},{"$f":"VLOOKUP(F26,Tabella24[],2,FALSE)","v":{"$error":"#N/A"}}]
[12,null,null,null,0.20507796606886652,{"$f":"INDEX(B$16:INDIRECT($B$35),RANK($E27,$E$16:INDIRECT($C$35)))","v":{"$error":"#N/A"}},{"$f":"VLOOKUP(F27,Tabella24[],2,FALSE)","v":{"$error":"#N/A"}}]
[13,null,null,null,0.33321476232248726,{"$f":"INDEX(B$16:INDIRECT($B$35),RANK($E28,$E$16:INDIRECT($C$35)))","v":{"$error":"#N/A"}},{"$f":"VLOOKUP(F28,Tabella24[],2,FALSE)","v":{"$error":"#N/A"}}]
[14,null,null,null,0.58490127104187972,{"$f":"INDEX(B$16:INDIRECT($B$35),RANK($E29,$E$16:INDIRECT($C$35)))","v":{"$error":"#N/A"}},{"$f":"VLOOKUP(F29,Tabella24[],2,FALSE)","v":{"$error":"#N/A"}}]
[15,null,null,null,0.47806056542423803,{"$f":"INDEX(B$16:INDIRECT($B$35),RANK($E30,$E$16:INDIRECT($C$35)))","v":{"$error":"#N/A"}},{"$f":"VLOOKUP(F30,Tabella24[],2,FALSE)","v":{"$error":"#N/A"}}]
[]
[]
["RIGHE VUOTE",{"$f":"COUNTBLANK(Tabella24[Nome commissario disponibile])","v":5}]
["FINE DATI",{"$f":"30-B33","v":25}]
["LIMITI TABELLE",{"$f":"ADDRESS($B$34,2,1,TRUE)","v":"$B$25"},{"$f":"ADDRESS($B$34,5,1,TRUE)","v":"$E$25"}]

{"sheet":"Commissione","index":1,"n_rows":18,"n_cols":3,"rows_kept":18,"cut":false,"hidden":false,"merged":[[10,0,10,2],[6,0,8,2]]}
[]
[]
[]
[]
[]
[]
[{"$f":"'Rosa a 15 senza membro des.'!A2:A2","v":"Prova di titolo di verbale di selezione senza membro interno per un totale di tre o cinque commissari come richiesto dalla normativa vigente"}]
[]
[]
[]
["COMMISSIONE SORTEGGIATA"]
[]
["Commissione","Qualifica","Ruolo"]
[{"$f":"'Rosa a 15 senza membro des.'!F16","v":"bb"},{"$f":"'Rosa a 15 senza membro des.'!G16","v":"PO"},"Commissario"]
[{"$f":"'Rosa a 15 senza membro des.'!F17","v":"aa"},{"$f":"'Rosa a 15 senza membro des.'!G17","v":"PO"},"Commissario"]
[{"$f":"'Rosa a 15 senza membro des.'!F18","v":"cc"},{"$f":"'Rosa a 15 senza membro des.'!G18","v":"PO"},"Commissario"]
[{"$f":"IF('Rosa a 15 senza membro des.'!$C$4=5,'Rosa a 15 senza membro des.'!F19,\"\")","v":""},{"$f":"IF('Rosa a 15 senza membro des.'!$C$4=5,'Rosa a 15 senza membro des.'!G18,\"\")","v":""},{"$f":"IF('Rosa a 15 senza membro des.'!$C$4=5,Commissione!C16,\"\")","v":""}]
[{"$f":"IF('Rosa a 15 senza membro des.'!$C$4=5,'Rosa a 15 senza membro des.'!F20,\"\")","v":""},{"$f":"IF('Rosa a 15 senza membro des.'!$C$4=5,'Rosa a 15 senza membro des.'!G19,\"\")","v":""},{"$f":"IF('Rosa a 15 senza membro des.'!$C$4=5,Commissione!C17,\"\")","v":""}]